[Event "*** Titled Tuesday Blitz"]
[Site "Chess.com"]
[Date "2020.04.28"]
[Round "3"]
[White "UmutErdemGunduz"]
[Black "bgfbfbgfbgfgf"]
[Result "1-0"]
[WhiteElo "2402"]
[BlackElo "2577"]
[TimeControl "180+1"]
[EndTime "10:30:07 PDT"]
[Termination "UmutErdemGunduz won on time"]

1. e4 {[%clk 0:03:00.9]} 1... c5 {[%clk 0:02:55.9]} 2. Nf3 {[%clk 0:02:59.5]}
2... d6 {[%clk 0:02:55.2]} 3. d4 {[%clk 0:02:58.9]} 3... cxd4 {[%clk 0:02:56.1]}
4. Nxd4 {[%clk 0:02:59.8]} 4... Nf6 {[%clk 0:02:56.5]} 5. f3 {[%clk 0:02:59.7]}
5... e5 {[%clk 0:02:55.6]} 6. Nb3 {[%clk 0:02:59.5]} 6... Be6 {[%clk 0:02:53.2]}
7. c4 {[%clk 0:02:59.1]} 7... Nbd7 {[%clk 0:02:52]} 8. Nc3 {[%clk 0:02:59.3]}
8... Rc8 {[%clk 0:02:45.8]} 9. Be3 {[%clk 0:02:59.7]} 9... Bxc4 {[%clk
0:02:43.8]} 10. Bxc4 {[%clk 0:03:00.6]} 10... Rxc4 {[%clk 0:02:43.8]} 11. Qd3
{[%clk 0:03:01.2]} 11... Rc6 {[%clk 0:02:43.2]} 12. O-O-O {[%clk 0:03:01.3]}
12... a6 {[%clk 0:02:30.9]} 13. g4 {[%clk 0:03:00.1]} 13... Be7 {[%clk
0:02:28.7]} 14. g5 {[%clk 0:02:59.7]} 14... Nh5 {[%clk 0:02:28.1]} 15. Kb1
{[%clk 0:02:59.9]} 15... Bxg5 {[%clk 0:02:24]} 16. Nd5 {[%clk 0:02:47.7]} 16...
O-O {[%clk 0:02:20.5]} 17. Rhg1 {[%clk 0:02:41.2]} 17... Bxe3 {[%clk 0:02:11.1]}
18. Qxe3 {[%clk 0:02:40.1]} 18... Nf4 {[%clk 0:01:45.3]} 19. Nxf4 {[%clk
0:02:14.4]} 19... exf4 {[%clk 0:01:46.2]} 20. Qxf4 {[%clk 0:02:14.7]} 20... Ne5
{[%clk 0:01:45.3]} 21. Nd4 {[%clk 0:02:05.2]} 21... Rb6 {[%clk 0:01:41.4]} 22.
h4 {[%clk 0:01:26.7]} 22... Ng6 {[%clk 0:01:32.1]} 23. Qe3 {[%clk 0:01:22.7]}
23... Qxh4 {[%clk 0:01:12.5]} 24. Ne6 {[%clk 0:00:58.6]} 24... Rxb2+ {[%clk
0:01:01]} 25. Kxb2 {[%clk 0:00:58]} 25... fxe6 {[%clk 0:01:01.9]} 26. Rxd6
{[%clk 0:00:55.6]} 26... Qh2+ {[%clk 0:00:59.1]} 27. Rd2 {[%clk 0:00:53.5]}
27... Qe5+ {[%clk 0:00:54.5]} 28. Kb1 {[%clk 0:00:51.3]} 28... Nh4 {[%clk
0:00:35.7]} 29. Rf2 {[%clk 0:00:42.4]} 29... Qb5+ {[%clk 0:00:30.3]} 30. Ka1
{[%clk 0:00:40.8]} 30... Qe5+ {[%clk 0:00:29.2]} 31. Kb1 {[%clk 0:00:38.1]}
31... h5 {[%clk 0:00:16.7]} 32. Rg5 {[%clk 0:00:33]} 32... Nf5 {[%clk
0:00:12.4]} 33. Qb3 {[%clk 0:00:28.8]} 33... Qf6 {[%clk 0:00:04.9]} 34. Rfg2
{[%clk 0:00:27.2]} 34... Nd4 {[%clk 0:00:02]} 35. Rxg7+ {[%clk 0:00:26.5]} 35...
Kh8 {[%clk 0:00:02.6]} 36. Qxb7 {[%clk 0:00:21.6]} 36... Qh6 {[%clk 0:00:02.7]}
37. Qb2 {[%clk 0:00:18.6]} 37... e5 {[%clk 0:00:02.4]} 38. Re7 {[%clk
0:00:17.7]} 38... Qd6 {[%clk 0:00:02.1]} 39. Rb7 {[%clk 0:00:17.1]} 39... Rc8
{[%clk 0:00:02.1]} 40. Rd2 {[%clk 0:00:16.7]} 40... Qc5 {[%clk 0:00:02.2]} 41.
f4 {[%clk 0:00:16.2]} 41... Nf3 {[%clk 0:00:02.6]} 42. Rbd7 {[%clk 0:00:14.3]}
42... Qg1+ {[%clk 0:00:02.5]} 43. Rd1 {[%clk 0:00:14.2]} 43... Qc5 {[%clk
0:00:03.4]} 44. Rd8+ {[%clk 0:00:14.1]} 44... Rxd8 {[%clk 0:00:03.4]} 45. Rxd8+
{[%clk 0:00:15]} 45... Kg7 {[%clk 0:00:04.2]} 46. Qb7+ {[%clk 0:00:14.8]} 46...
Kf6 {[%clk 0:00:03.5]} 47. Rd3 {[%clk 0:00:08.7]} 47... Qg1+ {[%clk 0:00:02.9]}
48. Kb2 {[%clk 0:00:09.1]} 48... Qg2+ {[%clk 0:00:02.7]} 49. Ka3 {[%clk
0:00:09.1]} 49... Nd4 {[%clk 0:00:02.6]} 50. fxe5+ {[%clk 0:00:08.7]} 1-0

[Event "*** Titled Tuesday Blitz"]
[Site "Chess.com"]
[Date "2020.04.28"]
[Round "3"]
[White "stoleriu"]
[Black "marianokar"]
[Result "1-0"]
[WhiteElo "2552"]
[BlackElo "2350"]
[TimeControl "180+1"]
[EndTime "10:30:08 PDT"]
[Termination "stoleriu won by resignation"]

1. e4 {[%clk 0:03:00.9]} 1... e5 {[%clk 0:02:58.3]} 2. Nf3 {[%clk 0:03:00.2]}
2... Nc6 {[%clk 0:02:58.8]} 3. Bb5 {[%clk 0:02:58.2]} 3... Nf6 {[%clk
0:02:58.6]} 4. d3 {[%clk 0:02:58.1]} 4... d6 {[%clk 0:02:55.7]} 5. c3 {[%clk
0:02:57.3]} 5... g6 {[%clk 0:02:55.2]} 6. O-O {[%clk 0:02:55.5]} 6... Bg7 {[%clk
0:02:55.1]} 7. Re1 {[%clk 0:02:54.8]} 7... O-O {[%clk 0:02:54.4]} 8. Bg5 {[%clk
0:02:49.6]} 8... a6 {[%clk 0:02:53]} 9. Ba4 {[%clk 0:02:46]} 9... b5 {[%clk
0:02:52.7]} 10. Bb3 {[%clk 0:02:45.6]} 10... Na5 {[%clk 0:02:51.6]} 11. Bc2
{[%clk 0:02:44.7]} 11... c5 {[%clk 0:02:51.5]} 12. Nbd2 {[%clk 0:02:44.2]} 12...
Bb7 {[%clk 0:02:47.6]} 13. Nf1 {[%clk 0:02:42.2]} 13... Nc6 {[%clk 0:02:40.6]}
14. Ne3 {[%clk 0:02:36.6]} 14... Nb8 {[%clk 0:02:36.1]} 15. a4 {[%clk
0:02:33.6]} 15... Nbd7 {[%clk 0:02:36]} 16. Bb3 {[%clk 0:02:32.4]} 16... Qc7
{[%clk 0:02:28.5]} 17. h3 {[%clk 0:02:17.5]} 17... Rfe8 {[%clk 0:01:49.9]} 18.
axb5 {[%clk 0:01:48.2]} 18... axb5 {[%clk 0:01:48.7]} 19. Rxa8 {[%clk
0:01:49.1]} 19... Rxa8 {[%clk 0:01:47.9]} 20. Bxf6 {[%clk 0:01:49.6]} 20... Nxf6
{[%clk 0:01:47]} 21. Ng5 {[%clk 0:01:50.2]} 21... Rf8 {[%clk 0:01:42.8]} 22. Ng4
{[%clk 0:01:50.1]} 22... c4 {[%clk 0:01:18.7]} 23. Bc2 {[%clk 0:01:39.3]} 23...
Nd7 {[%clk 0:01:07.1]} 24. Ne3 {[%clk 0:01:33.4]} 24... h6 {[%clk 0:01:03.6]}
25. Nf3 {[%clk 0:01:33.2]} 25... cxd3 {[%clk 0:01:03.6]} 26. Bxd3 {[%clk
0:01:34.1]} 26... Nc5 {[%clk 0:01:03]} 27. Bxb5 {[%clk 0:01:33]} 27... Bxe4
{[%clk 0:00:56.2]} 28. Be2 {[%clk 0:01:18]} 28... Rd8 {[%clk 0:00:39.7]} 29. b4
{[%clk 0:01:16.6]} 29... Ne6 {[%clk 0:00:39.5]} 30. Qb3 {[%clk 0:01:15.7]} 30...
d5 {[%clk 0:00:34.8]} 31. Nd2 {[%clk 0:01:13.8]} 31... Nf4 {[%clk 0:00:28.7]}
32. Nxe4 {[%clk 0:01:10.3]} 32... Nxe2+ {[%clk 0:00:27.7]} 33. Rxe2 {[%clk
0:01:10.9]} 33... dxe4 {[%clk 0:00:28.5]} 34. c4 {[%clk 0:01:01.6]} 34... f5
{[%clk 0:00:24.4]} 35. c5+ {[%clk 0:01:01.5]} 35... Kh7 {[%clk 0:00:24.9]} 36.
Re1 {[%clk 0:00:59.1]} 36... Rd3 {[%clk 0:00:22.4]} 37. Qb1 {[%clk 0:00:51.8]}
37... Rd4 {[%clk 0:00:19.2]} 38. Rc1 {[%clk 0:00:45.3]} 38... f4 {[%clk
0:00:17.8]} 39. Nf1 {[%clk 0:00:43.3]} 39... e3 {[%clk 0:00:15.5]} 40. fxe3
{[%clk 0:00:41.5]} 40... fxe3 {[%clk 0:00:16.4]} 41. Nxe3 {[%clk 0:00:42.4]}
41... e4 {[%clk 0:00:16.8]} 42. b5 {[%clk 0:00:41.4]} 42... Qg3 {[%clk
0:00:16.3]} 43. Nf1 {[%clk 0:00:38.9]} 43... Qd3 {[%clk 0:00:13.7]} 44. Qxd3
{[%clk 0:00:31.2]} 44... exd3 {[%clk 0:00:14.6]} 45. c6 {[%clk 0:00:30.8]} 45...
d2 {[%clk 0:00:09.9]} 46. Rd1 {[%clk 0:00:31]} 46... Rb4 {[%clk 0:00:08.4]} 47.
Nxd2 {[%clk 0:00:16]} 47... Rxb5 {[%clk 0:00:08.2]} 48. Ne4 {[%clk 0:00:16.4]}
48... Rb8 {[%clk 0:00:07.4]} 49. Rd7 {[%clk 0:00:14.5]} 49... Rc8 {[%clk
0:00:08.3]} 50. c7 {[%clk 0:00:14]} 50... Kh8 {[%clk 0:00:07.5]} 51. Nd6 {[%clk
0:00:12.5]} 51... Bd4+ {[%clk 0:00:07.4]} 52. Kh1 {[%clk 0:00:11.2]} 52... Rf8
{[%clk 0:00:07]} 53. Rd8 {[%clk 0:00:09.8]} 1-0

[Event "*** Titled Tuesday Blitz"]
[Site "Chess.com"]
[Date "2020.04.28"]
[Round "3"]
[White "tomozupan"]
[Black "PotapovaM"]
[Result "0-1"]
[WhiteElo "2208"]
[BlackElo "2425"]
[TimeControl "180+1"]
[EndTime "10:30:08 PDT"]
[Termination "PotapovaM won by resignation"]

1. d4 {[%clk 0:03:00.9]} 1... Nf6 {[%clk 0:02:59.6]} 2. Bg5 {[%clk 0:02:58.8]}
2... Ne4 {[%clk 0:02:57.7]} 3. Bf4 {[%clk 0:02:57.9]} 3... c5 {[%clk 0:02:57.4]}
4. f3 {[%clk 0:02:57]} 4... Qa5+ {[%clk 0:02:57.5]} 5. c3 {[%clk 0:02:54.9]}
5... Nf6 {[%clk 0:02:57.7]} 6. d5 {[%clk 0:02:54.3]} 6... e6 {[%clk 0:02:56.3]}
7. e4 {[%clk 0:02:54]} 7... exd5 {[%clk 0:02:56.2]} 8. e5 {[%clk 0:02:51]} 8...
Nh5 {[%clk 0:02:17.2]} 9. Bc1 {[%clk 0:02:47.7]} 9... Qd8 {[%clk 0:02:06.5]} 10.
Qxd5 {[%clk 0:02:45.2]} 10... Qh4+ {[%clk 0:02:02.8]} 11. Kd2 {[%clk 0:01:54.4]}
11... Nc6 {[%clk 0:01:51.5]} 12. Bc4 {[%clk 0:01:45]} 12... Qg5+ {[%clk
0:01:46.7]} 13. Kc2 {[%clk 0:01:37.5]} 13... Qxg2+ {[%clk 0:01:35.4]} 14. Ne2
{[%clk 0:01:34.8]} 14... Qg6+ {[%clk 0:01:11.6]} 15. Kd1 {[%clk 0:01:21.4]}
15... Be7 {[%clk 0:01:02.8]} 16. Rg1 {[%clk 0:00:55.7]} 16... Qe6 {[%clk
0:01:02.4]} 17. Qxe6 {[%clk 0:00:18.2]} 17... dxe6 {[%clk 0:00:56.4]} 18. Nd2
{[%clk 0:00:18.3]} 18... Bd7 {[%clk 0:00:52.2]} 19. f4 {[%clk 0:00:17.7]} 19...
O-O-O {[%clk 0:00:52]} 20. Kc2 {[%clk 0:00:17.4]} 20... a6 {[%clk 0:00:46.9]}
21. Ne4 {[%clk 0:00:17.3]} 21... b5 {[%clk 0:00:45.2]} 22. Bb3 {[%clk
0:00:10.2]} 22... c4 {[%clk 0:00:45.2]} 23. Be3 {[%clk 0:00:08]} 23... cxb3+
{[%clk 0:00:44.7]} 24. axb3 {[%clk 0:00:07.7]} 24... Kb7 {[%clk 0:00:37.4]} 25.
b4 {[%clk 0:00:07.9]} 25... f5 {[%clk 0:00:29.6]} 26. Nc5+ {[%clk 0:00:06.7]}
26... Bxc5 {[%clk 0:00:28.9]} 27. Bxc5 {[%clk 0:00:06.7]} 27... g6 {[%clk
0:00:25]} 28. Rad1 {[%clk 0:00:03.6]} 28... Bc8 {[%clk 0:00:24]} 29. Nd4 {[%clk
0:00:02.9]} 29... Nxd4+ {[%clk 0:00:23.5]} 30. Bxd4 {[%clk 0:00:03.1]} 30... Bd7
{[%clk 0:00:21.8]} 31. Rgf1 {[%clk 0:00:03.1]} 31... Bc6 {[%clk 0:00:21.5]} 32.
Rde1 {[%clk 0:00:03.6]} 32... Be4+ {[%clk 0:00:21.5]} 33. Kb3 {[%clk 0:00:03.5]}
33... Rd7 {[%clk 0:00:21.8]} 34. Ka3 {[%clk 0:00:03.3]} 34... Ra8 {[%clk
0:00:20.8]} 35. Re2 {[%clk 0:00:03.1]} 35... Rc8 {[%clk 0:00:19.3]} 36. Re3
{[%clk 0:00:03.3]} 36... Ng7 {[%clk 0:00:19.2]} 37. Rfe1 {[%clk 0:00:03.4]}
37... Ne8 {[%clk 0:00:19.3]} 38. R3e2 {[%clk 0:00:03.6]} 38... Nc7 {[%clk
0:00:19.5]} 39. Bc5 {[%clk 0:00:03.7]} 39... Nd5 {[%clk 0:00:19.4]} 40. Bd6
{[%clk 0:00:03.9]} 40... Nxf4 {[%clk 0:00:18.9]} 41. Rd2 {[%clk 0:00:03.6]}
41... Nd5 {[%clk 0:00:18.6]} 42. Bc5 {[%clk 0:00:03.4]} 42... g5 {[%clk
0:00:18]} 43. Rd4 {[%clk 0:00:03.3]} 43... g4 {[%clk 0:00:16.5]} 44. c4 {[%clk
0:00:03.2]} 44... bxc4 {[%clk 0:00:17.4]} 45. Rxc4 {[%clk 0:00:03.3]} 45... h5
{[%clk 0:00:15.2]} 46. Rec1 {[%clk 0:00:03.4]} 46... h4 {[%clk 0:00:14.1]} 47.
Bd6 {[%clk 0:00:03.7]} 47... Rxc4 {[%clk 0:00:13.4]} 48. Rxc4 {[%clk 0:00:04.6]}
48... g3 {[%clk 0:00:13.5]} 49. hxg3 {[%clk 0:00:03.6]} 49... hxg3 {[%clk
0:00:14.4]} 50. Rc1 {[%clk 0:00:03.3]} 50... g2 {[%clk 0:00:14.6]} 51. b5 {[%clk
0:00:03.7]} 51... axb5 {[%clk 0:00:14.3]} 52. b4 {[%clk 0:00:04.2]} 52... Nf4
{[%clk 0:00:13.3]} 53. Kb3 {[%clk 0:00:04.4]} 53... Ne2 {[%clk 0:00:13]} 54. Re1
{[%clk 0:00:03.5]} 54... g1=Q {[%clk 0:00:12.2]} 55. Rxe2 {[%clk 0:00:04.1]}
55... Qb1+ {[%clk 0:00:11.5]} 0-1

[Event "*** Titled Tuesday Blitz"]
[Site "Chess.com"]
[Date "2020.04.28"]
[Round "3"]
[White "HrvojeZagreb"]
[Black "crossingthestreet"]
[Result "0-1"]
[WhiteElo "2098"]
[BlackElo "2322"]
[TimeControl "180+1"]
[EndTime "10:30:09 PDT"]
[Termination "crossingthestreet won by resignation"]

1. d4 {[%clk 0:03:00.9]} 1... Nf6 {[%clk 0:02:59.4]} 2. Bf4 {[%clk 0:03:00.3]}
2... d5 {[%clk 0:02:58.5]} 3. e3 {[%clk 0:03:00.4]} 3... e6 {[%clk 0:02:58.8]}
4. Nd2 {[%clk 0:02:59.7]} 4... Bd6 {[%clk 0:02:58.8]} 5. Bg3 {[%clk 0:03:00]}
5... O-O {[%clk 0:02:59]} 6. Bd3 {[%clk 0:02:59.6]} 6... c5 {[%clk 0:02:58.9]}
7. c3 {[%clk 0:02:59.8]} 7... Qc7 {[%clk 0:02:54.7]} 8. Ngf3 {[%clk 0:02:59]}
8... Nbd7 {[%clk 0:02:54.8]} 9. e4 {[%clk 0:02:49.7]} 9... dxe4 {[%clk
0:02:49.9]} 10. Nxe4 {[%clk 0:02:50.6]} 10... Nxe4 {[%clk 0:02:50.1]} 11. Bxe4
{[%clk 0:02:51.4]} 11... Nf6 {[%clk 0:02:49.6]} 12. dxc5 {[%clk 0:02:38]} 12...
Bxg3 {[%clk 0:02:42.1]} 13. Bxh7+ {[%clk 0:02:20.2]} 13... Nxh7 {[%clk 0:02:43]}
14. hxg3 {[%clk 0:02:20.4]} 14... Nf6 {[%clk 0:02:21.3]} 15. Qd4 {[%clk
0:02:01.2]} 15... Qc6 {[%clk 0:02:02.8]} 16. Ng5 {[%clk 0:01:34.2]} 16... Re8
{[%clk 0:00:48.4]} 17. Qh4 {[%clk 0:01:24.8]} 17... Kf8 {[%clk 0:00:48.6]} 18.
Qh8+ {[%clk 0:00:52.5]} 18... Ke7 {[%clk 0:00:36.2]} 19. Qxg7 {[%clk 0:00:52]}
19... Rf8 {[%clk 0:00:35]} 20. O-O-O {[%clk 0:00:48.4]} 20... Qxc5 {[%clk
0:00:31.9]} 21. Qxf6+ {[%clk 0:00:43.4]} 21... Kxf6 {[%clk 0:00:31.4]} 22. Ne4+
{[%clk 0:00:44]} 22... Ke7 {[%clk 0:00:32.1]} 23. Nxc5 {[%clk 0:00:44.1]} 23...
b6 {[%clk 0:00:32.8]} 24. Nb3 {[%clk 0:00:33.2]} 24... Bb7 {[%clk 0:00:33]} 25.
f3 {[%clk 0:00:32.4]} 25... Rg8 {[%clk 0:00:31.2]} 26. g4 {[%clk 0:00:32.2]}
26... Rac8 {[%clk 0:00:31.6]} 27. Nd4 {[%clk 0:00:30.7]} 27... a6 {[%clk
0:00:31.3]} 28. Rh7 {[%clk 0:00:26.8]} 28... Kf6 {[%clk 0:00:30.4]} 29. Re1
{[%clk 0:00:24.3]} 29... Rh8 {[%clk 0:00:27.6]} 30. Reh1 {[%clk 0:00:19.5]}
30... Rxh7 {[%clk 0:00:27.5]} 31. Rxh7 {[%clk 0:00:20.4]} 31... b5 {[%clk
0:00:27.3]} 32. a3 {[%clk 0:00:19.7]} 32... Bd5 {[%clk 0:00:25.9]} 33. Kd2
{[%clk 0:00:19.5]} 33... Kg6 {[%clk 0:00:25.6]} 34. Rh1 {[%clk 0:00:18.5]} 34...
Rd8 {[%clk 0:00:25.7]} 35. Ke3 {[%clk 0:00:17.6]} 35... e5 {[%clk 0:00:25.2]}
36. Ne2 {[%clk 0:00:16.8]} 36... Bb7 {[%clk 0:00:24.3]} 37. Ng3 {[%clk
0:00:15.6]} 37... a5 {[%clk 0:00:21.8]} 38. Nf5 {[%clk 0:00:14.9]} 38... Kf6
{[%clk 0:00:18.7]} 39. Rh6+ {[%clk 0:00:14.8]} 39... Kg5 {[%clk 0:00:18.7]} 40.
Rb6 {[%clk 0:00:15.3]} 40... Bd5 {[%clk 0:00:17]} 41. Rxb5 {[%clk 0:00:15.4]}
41... f6 {[%clk 0:00:17.6]} 42. g3 {[%clk 0:00:13.3]} 42... a4 {[%clk
0:00:17.3]} 43. Rb4 {[%clk 0:00:12.7]} 43... Bb3 {[%clk 0:00:16.6]} 44. Ne7
{[%clk 0:00:12.4]} 44... Rd1 {[%clk 0:00:15.7]} 45. f4+ {[%clk 0:00:12.6]} 45...
exf4+ {[%clk 0:00:15.6]} 46. gxf4+ {[%clk 0:00:13.5]} 46... Kxg4 {[%clk
0:00:15.4]} 47. f5+ {[%clk 0:00:13.4]} 47... Kg5 {[%clk 0:00:15.3]} 48. Rb8
{[%clk 0:00:12.2]} 48... Re1+ {[%clk 0:00:14.1]} 49. Kd4 {[%clk 0:00:10.8]}
49... Rb1 {[%clk 0:00:14]} 50. Rg8+ {[%clk 0:00:09.8]} 50... Bxg8 {[%clk
0:00:13.5]} 51. Nxg8 {[%clk 0:00:09.5]} 51... Rxb2 {[%clk 0:00:13.7]} 52. Ne7
{[%clk 0:00:08.2]} 52... Rb3 {[%clk 0:00:13.8]} 53. c4 {[%clk 0:00:05.8]} 53...
Rxa3 {[%clk 0:00:14.2]} 54. c5 {[%clk 0:00:06.2]} 54... Ra1 {[%clk 0:00:14.6]}
55. Nd5 {[%clk 0:00:05.1]} 55... Rc1 {[%clk 0:00:14.2]} 56. Nc3 {[%clk
0:00:05.2]} 56... a3 {[%clk 0:00:14.5]} 57. c6 {[%clk 0:00:05.3]} 57... a2
{[%clk 0:00:12.3]} 58. c7 {[%clk 0:00:05.5]} 58... Rxc3 {[%clk 0:00:11.7]} 0-1

[Event "*** Titled Tuesday Blitz"]
[Site "Chess.com"]
[Date "2020.04.28"]
[Round "3"]
[White "Riazantsev"]
[Black "Michaelson_11"]
[Result "0-1"]
[WhiteElo "2664"]
[BlackElo "1993"]
[TimeControl "180+1"]
[EndTime "10:30:10 PDT"]
[Termination "Michaelson_11 won by checkmate"]

1. d4 {[%clk 0:02:55.2]} 1... Nf6 {[%clk 0:02:59.5]} 2. c4 {[%clk 0:02:55.4]}
2... e6 {[%clk 0:02:59.5]} 3. Nf3 {[%clk 0:02:55]} 3... d5 {[%clk 0:02:59.4]} 4.
Bg5 {[%clk 0:02:53.5]} 4... dxc4 {[%clk 0:02:58.5]} 5. e4 {[%clk 0:02:50.7]}
5... b5 {[%clk 0:02:57.8]} 6. a4 {[%clk 0:02:48.2]} 6... c6 {[%clk 0:02:56.8]}
7. Nc3 {[%clk 0:02:47.1]} 7... a6 {[%clk 0:02:35]} 8. axb5 {[%clk 0:02:43]} 8...
cxb5 {[%clk 0:02:35.9]} 9. Nxb5 {[%clk 0:02:41.4]} 9... axb5 {[%clk 0:02:36.5]}
10. Rxa8 {[%clk 0:02:40.6]} 10... Bb7 {[%clk 0:02:37]} 11. Bxf6 {[%clk
0:02:30.8]} 11... gxf6 {[%clk 0:02:35.5]} 12. Ra1 {[%clk 0:02:28.6]} 12... Bb4+
{[%clk 0:02:32.9]} 13. Nd2 {[%clk 0:02:27.4]} 13... Bxe4 {[%clk 0:02:24.5]} 14.
f3 {[%clk 0:02:27.2]} 14... Bc6 {[%clk 0:02:18.6]} 15. Qe2 {[%clk 0:01:42.6]}
15... Qxd4 {[%clk 0:02:14.3]} 16. Rd1 {[%clk 0:01:43.2]} 16... Ke7 {[%clk
0:02:04.4]} 17. g3 {[%clk 0:01:35.4]} 17... Qxb2 {[%clk 0:01:52.3]} 18. Kf2
{[%clk 0:01:32.2]} 18... c3 {[%clk 0:01:35.8]} 19. Qe3 {[%clk 0:01:08.9]} 19...
cxd2 {[%clk 0:01:25.7]} 20. Kg2 {[%clk 0:01:05.1]} 20... Nd7 {[%clk 0:01:18]}
21. Be2 {[%clk 0:01:05.4]} 21... Rg8 {[%clk 0:01:05]} 22. Rb1 {[%clk 0:01:03.4]}
22... Qc3 {[%clk 0:01:02.8]} 23. Qxc3 {[%clk 0:01:01.9]} 23... Bxc3 {[%clk
0:01:03.7]} 24. Bxb5 {[%clk 0:01:02.5]} 24... Bxb5 {[%clk 0:00:53.2]} 25. Rxb5
{[%clk 0:01:03.4]} 25... Ra8 {[%clk 0:00:48.6]} 26. Rd1 {[%clk 0:01:01.7]} 26...
Ra1 {[%clk 0:00:43.6]} 27. Rbb1 {[%clk 0:00:57.3]} 27... Rxb1 {[%clk 0:00:42.6]}
28. Rxb1 {[%clk 0:00:58.2]} 28... Nc5 {[%clk 0:00:35.1]} 29. Kf2 {[%clk
0:00:57.7]} 29... Nd3+ {[%clk 0:00:25.2]} 30. Ke2 {[%clk 0:00:57.3]} 30... Nb2
{[%clk 0:00:25]} 31. Rxb2 {[%clk 0:00:54.3]} 31... Bxb2 {[%clk 0:00:24.9]} 32.
Kxd2 {[%clk 0:00:55.2]} 32... Bd4 {[%clk 0:00:25.1]} 33. Kd3 {[%clk 0:00:55.5]}
33... Bg1 {[%clk 0:00:24.7]} 34. h3 {[%clk 0:00:56]} 34... f5 {[%clk 0:00:24.6]}
35. Ke2 {[%clk 0:00:54.7]} 35... Kf6 {[%clk 0:00:24.4]} 36. Kf1 {[%clk 0:00:55]}
36... Ba7 {[%clk 0:00:23]} 37. Ke2 {[%clk 0:00:55.3]} 37... Bb8 {[%clk
0:00:22.1]} 38. Kf2 {[%clk 0:00:55.2]} 38... Kg6 {[%clk 0:00:20.7]} 39. Kg2
{[%clk 0:00:55.5]} 39... Kg5 {[%clk 0:00:20.3]} 40. Kf2 {[%clk 0:00:56.4]} 40...
f4 {[%clk 0:00:20.6]} 41. g4 {[%clk 0:00:56.3]} 41... Kh4 {[%clk 0:00:20.8]} 42.
Kg2 {[%clk 0:00:56.8]} 42... Ba7 {[%clk 0:00:21.2]} 43. Kh2 {[%clk 0:00:57.7]}
43... f6 {[%clk 0:00:21.3]} 44. Kg2 {[%clk 0:00:58.6]} 44... Be3 {[%clk
0:00:21.3]} 45. Kh2 {[%clk 0:00:59.5]} 45... e5 {[%clk 0:00:20.7]} 46. Kg2
{[%clk 0:01:00.4]} 46... h5 {[%clk 0:00:20.5]} 47. Kh2 {[%clk 0:01:01.3]} 47...
hxg4 {[%clk 0:00:20.2]} 48. hxg4 {[%clk 0:01:02.2]} 48... Bf2 {[%clk 0:00:17.2]}
49. Kg2 {[%clk 0:01:02.3]} 49... Ba7 {[%clk 0:00:17]} 50. Kh2 {[%clk 0:01:02.4]}
50... e4 {[%clk 0:00:16.4]} 51. fxe4 {[%clk 0:01:02.1]} 51... Kxg4 {[%clk
0:00:16.8]} 52. Kg2 {[%clk 0:01:02.4]} 52... f3+ {[%clk 0:00:17.2]} 53. Kf1
{[%clk 0:01:03.3]} 53... Kf4 {[%clk 0:00:17.5]} 54. Ke1 {[%clk 0:01:04.2]} 54...
Kxe4 {[%clk 0:00:17.8]} 55. Kf1 {[%clk 0:01:05.1]} 55... Kf4 {[%clk 0:00:15.2]}
56. Ke1 {[%clk 0:01:06]} 56... Kg3 {[%clk 0:00:14]} 57. Kf1 {[%clk 0:01:06.9]}
57... f2 {[%clk 0:00:14]} 58. Ke2 {[%clk 0:01:07.4]} 58... Kg2 {[%clk
0:00:14.5]} 59. Kd3 {[%clk 0:01:08.3]} 59... f1=Q+ {[%clk 0:00:14.5]} 60. Ke4
{[%clk 0:01:09.2]} 60... Qc4+ {[%clk 0:00:11.1]} 61. Kf5 {[%clk 0:01:09.2]}
61... Qd4 {[%clk 0:00:08.8]} 62. Kg6 {[%clk 0:01:10.1]} 62... Kf3 {[%clk
0:00:09]} 63. Kf5 {[%clk 0:01:11]} 63... Bb6 {[%clk 0:00:08.5]} 64. Ke6 {[%clk
0:01:11.2]} 64... Ke4 {[%clk 0:00:08.8]} 65. Kf7 {[%clk 0:01:11.5]} 65... Kf5
{[%clk 0:00:09.1]} 66. Kg7 {[%clk 0:01:11.7]} 66... Bc5 {[%clk 0:00:08.2]} 67.
Kf7 {[%clk 0:01:11.9]} 67... Qd7+ {[%clk 0:00:08]} 68. Kg8 {[%clk 0:01:12.1]}
68... Qe7 {[%clk 0:00:08]} 69. Kh8 {[%clk 0:01:12.2]} 69... Kg6 {[%clk
0:00:08.3]} 70. Kg8 {[%clk 0:01:12.3]} 70... Qe8# {[%clk 0:00:08.8]} 0-1